fUST/lending_fUST_20250107
["ID","MTS","AMOUNT","RATE_DAILY","PERIOD"]
[347937328,1736225438603,-505.623645,0.00019178,2]
[347937329,1736225438614,-500.0,0.00019178,2]
[347937331,1736225438623,-504.24420562,0.00019178,2]
[347937333,1736225438632,-505.85501206,0.00019178,2]
[347937335,1736225438642,-216.98238637,0.00019178,2]
[347937337,1736225438651,-500.0,0.00019178,2]
[347937339,1736225438661,-421.75915309,0.00019178,2]
[347937340,1736225438700,-78.24084691,0.00019178,2]
[347937341,1736225438709,-504.20804695,0.00019178,2]
[347937342,1736225438718,-500.0,0.00019178,2]
[347937343,1736225438727,-75.70426502,0.00019178,2]
[347937344,1736225438948,-32.12227623,0.00019178,2]
[347937349,1736225440716,-394.32344053,0.00019178,2]
[347937350,1736225440726,-511.43307004,0.00019178,2]
[347937351,1736225440735,-500.0,0.00019178,2]
[347937352,1736225440744,-500.0,0.00019178,2]
[347937353,1736225440753,-500.0,0.00019178,2]
[347937354,1736225440763,-500.0,0.00019178,2]
[347937355,1736225440773,-502.77420627,0.00019178,2]
[347937356,1736225440783,-513.57231687,0.00019178,2]
[347937357,1736225440792,-151.0,0.00019178,2]
[347937358,1736225440801,-151.0,0.00019178,2]
[347937359,1736225440811,-511.71927572,0.00019178,2]
[347937360,1736225440820,-504.71903422,0.00019178,2]
[347937361,1736225440829,-389.3999373,0.00019178,2]
[347937362,1736225440838,-503.44177267,0.00019178,2]
[347937363,1736225440847,-503.28983553,0.00019178,2]
[347937364,1736225440856,-500.0,0.00019178,2]
[347937365,1736225440866,-500.0,0.00019178,2]
[347937366,1736225440875,-507.72683286,0.00019178,2]
[347937367,1736225440884,-503.44225735,0.00019178,2]
[347937368,1736225440894,-500.0,0.00019178,2]
[347937369,1736225440904,-500.0,0.00019178,2]
[347937370,1736225440913,-500.0,0.00019178,2]
[347937371,1736225440923,-503.02505778,0.00019178,2]
[347937372,1736225440935,-500.0,0.00019178,2]
[347937373,1736225440943,-578.76705136,0.00019178,2]
[347937374,1736225440952,-505.01946241,0.00019178,2]
[347937375,1736225440962,-440.6264578,0.00019178,2]
[347937376,1736225440972,-500.0,0.00019178,2]
[347937377,1736225440982,-507.11060777,0.00019178,2]
[347937378,1736225440991,-267.73163086,0.00019178,2]
[347937379,1736225441000,-500.0,0.00019178,2]
[347937380,1736225441009,-500.0,0.00019178,2]
[347937381,1736225441019,-500.0,0.00019178,2]
[347937382,1736225441028,-151.0,0.00019178,2]
[347937383,1736225441038,-151.0,0.00019178,2]
[347937384,1736225441047,-151.0,0.00019178,2]
[347937385,1736225441057,-509.78890542,0.00019178,2]
[347937386,1736225441066,-151.0,0.00019178,2]
[347937387,1736225441076,-218.592312,0.00019178,2]
[347937388,1736225441085,-506.21974202,0.00019178,2]
[347937389,1736225441094,-158.92209578,0.00019178,2]
[347937390,1736225441104,-512.39762702,0.00019178,2]
[347937391,1736225441113,-500.0,0.00019178,2]
[347937392,1736225441122,-502.63864336,0.00019178,2]
[347937393,1736225441132,-504.27244941,0.00019178,2]
[347937394,1736225441141,-543.54420069,0.00019178,2]
[347937395,1736225441150,-502.67175818,0.00019178,2]
[347937396,1736225441159,-500.0,0.00019178,2]
[347937397,1736225441169,-500.0,0.00019178,2]
[347937398,1736225441178,-505.37704717,0.00019178,2]
[347937399,1736225441188,-500.0,0.00019178,2]
[347937400,1736225441198,-500.0,0.00019178,2]
[347937401,1736225441207,-510.86193785,0.00019178,2]
[347937402,1736225441217,-510.24547537,0.00019178,2]
[347937403,1736225441227,-502.51968531,0.00019178,2]
[347937404,1736225441236,-500.0,0.00019178,2]
[347937405,1736225441246,-503.68010815,0.00019178,2]
[347937406,1736225441255,-502.57039651,0.00019178,2]
[347937407,1736225441264,-151.0,0.00019178,2]
[347937408,1736225441273,-151.0,0.00019178,2]
[347937409,1736225441283,-154.503641,0.00019178,2]
[347937410,1736225441292,-500.0,0.00019178,2]
[347937411,1736225441301,-504.85427522,0.00019178,2]
[347937412,1736225441311,-500.0,0.00019178,2]
[347937413,1736225441322,-506.87376133,0.00019178,2]
[347937414,1736225441331,-500.0,0.00019178,2]
[347937415,1736225441341,-523.87241808,0.00019178,2]
[347937416,1736225441350,-500.0,0.00019178,2]
[347937417,1736225441359,-502.17889679,0.00019178,2]
[347937418,1736225441369,-500.0,0.00019178,2]
[347937419,1736225441378,-500.0,0.00019178,2]
[347937420,1736225441387,-511.06676646,0.00019178,2]
[347937421,1736225441397,-509.83703833,0.00019178,2]
[347937422,1736225441406,-151.0,0.00019178,2]
[347937423,1736225441415,-503.98216805,0.00019178,2]
[347937424,1736225441424,-151.0,0.00019178,2]
[347937425,1736225441434,-151.0,0.00019178,2]
[347937426,1736225441443,-151.0,0.00019178,2]
[347937427,1736225441453,-151.0,0.00019178,2]
[347937428,1736225441463,-151.0,0.00019178,2]
[347937429,1736225441472,-505.86532918,0.00019178,2]
[347937430,1736225441482,-151.0,0.00019178,2]
[347937431,1736225441491,-500.0,0.00019178,2]
[347937432,1736225441500,-500.0,0.00019178,2]
[347937433,1736225441510,-503.89914711,0.00019178,2]
[347937434,1736225441519,-505.73746167,0.00019178,2]
[347937435,1736225441528,-152.928962,0.00019178,2]
[347937436,1736225441538,-502.47932697,0.00019178,2]
[347937437,1736225441547,-500.0,0.00019178,2]
[347937438,1736225441556,-500.0,0.00019178,2]
[347937439,1736225441566,-151.0,0.00019178,2]
[347937440,1736225441575,-151.0,0.00019178,2]
[347937441,1736225441584,-151.0,0.00019178,2]
[347937442,1736225441594,-557.23,0.00019178,2]
[347937443,1736225441603,-500.0,0.00019178,2]
[347937444,1736225441613,-504.00614542,0.00019178,2]
[347937445,1736225441623,-500.0,0.00019178,2]
[347937446,1736225441633,-500.0,0.00019178,2]
[347937447,1736225441642,-500.0,0.00019178,2]
[347937448,1736225441651,-505.08252791,0.00019178,2]
[347937449,1736225441660,-500.0,0.00019178,2]
[347937450,1736225441670,-509.32615478,0.00019178,2]
[347937451,1736225441679,-502.46246154,0.00019178,2]
[347937452,1736225441688,-504.3627612,0.00019178,2]
[347937453,1736225441697,-505.63562448,0.00019178,2]
[347937454,1736225441707,-500.0,0.00019178,2]
[347937455,1736225441715,-2744.65,0.00019178,2]
[347937456,1736225441726,-500.0,0.00019178,2]
[347937457,1736225441734,-506.98996197,0.00019178,2]
[347937458,1736225441744,-500.0,0.00019178,2]
[347937459,1736225441754,-503.79447849,0.00019178,2]
[347937460,1736225441763,-500.0,0.00019178,2]
[347937461,1736225441772,-829.87,0.00019178,2]
[347937462,1736225441782,-750.21,0.00019178,2]
[347937463,1736225441791,-839.086756,0.00019178,2]
[347937464,1736225441801,-839.086756,0.00019178,2]
[347937465,1736225441810,-839.086756,0.00019178,2]
[347937466,1736225441819,-839.086756,0.00019178,2]
[347937467,1736225441828,-839.086756,0.00019178,2]
[347937468,1736225441837,-503.31385692,0.00019178,2]
[347937469,1736225441847,-839.086756,0.00019178,2]
[347937470,1736225441856,-839.086756,0.00019178,2]
[347937471,1736225441865,-839.086756,0.00019178,2]
[347937472,1736225441875,-502.62020684,0.00019178,2]
[347937473,1736225441883,-839.086756,0.00019178,2]
[347937474,1736225441893,-839.086756,0.00019178,2]
[347937475,1736225441903,-504.72461249,0.00019178,2]
[347937476,1736225441912,-500.0,0.00019178,2]
[347937477,1736225441922,-214.817055,0.00019178,2]
[347937478,1736225441931,-501.76002226,0.00019178,2]
[347937479,1736225441941,-500.0,0.00019178,2]
[347937480,1736225441950,-500.0,0.00019178,2]
[347937481,1736225441959,-507.55042271,0.00019178,2]
[347937482,1736225441968,-516.14465306,0.00019178,2]
[347937483,1736225441978,-500.0,0.00019178,2]
[347937484,1736225441987,-529.13303381,0.00019178,2]
[347937485,1736225441997,-510.94855105,0.00019178,2]
[347937486,1736225442006,-503.14543164,0.00019178,2]
[347937487,1736225442015,-716.65,0.00019178,2]
[347937488,1736225442024,-500.0,0.00019178,2]
[347937489,1736225442033,-504.11962715,0.00019178,2]
[347937490,1736225442042,-502.68936726,0.00019178,2]
[347937491,1736225442052,-500.0,0.00019178,2]
[347937492,1736225442062,-500.0,0.00019178,2]
[347937493,1736225442071,-504.54108525,0.00019178,2]
[347937494,1736225442080,-151.0,0.00019178,2]
[347937495,1736225442089,-151.0,0.00019178,2]
[347937496,1736225442098,-151.0,0.00019178,2]
[347937497,1736225442107,-158.020237,0.00019178,2]
[347937498,1736225442116,-500.0,0.00019178,2]
[347937499,1736225442125,-151.0,0.00019178,2]
[347937500,1736225442134,-151.0,0.00019178,2]
[347937501,1736225442143,-500.0,0.00019178,2]
[347937502,1736225442153,-500.0,0.00019178,2]
[347937503,1736225442161,-151.0,0.00019178,2]
[347937504,1736225442171,-151.0,0.00019178,2]
[347937505,1736225442180,-151.0,0.00019178,2]
[347937506,1736225442191,-151.0,0.00019178,2]
[347937507,1736225442201,-151.0,0.00019178,2]
[347937508,1736225442210,-151.0,0.00019178,2]
[347937509,1736225442220,-503.65882418,0.00019178,2]
[347937510,1736225442229,-500.0,0.00019178,2]
[347937511,1736225442239,-500.0,0.00019178,2]
[347937512,1736225442249,-4046.88,0.00019178,2]
[347937513,1736225442258,-506.90503398,0.00019178,2]
[347937514,1736225442267,-500.0,0.00019178,2]
[347937515,1736225442276,-500.0,0.00019178,2]
[347937516,1736225442286,-501.20185205,0.00019178,2]
[347937517,1736225442295,-500.0,0.00019178,2]
[347937518,1736225442304,-507.7988462,0.00019178,2]
[347937519,1736225442313,-515.46100096,0.00019178,2]
[347937520,1736225442323,-568.37535976,0.00019178,2]
[347937521,1736225442332,-500.0,0.00019178,2]
[347937522,1736225442341,-500.0,0.00019178,2]
[347937523,1736225442350,-500.0,0.00019178,2]
[347937524,1736225442359,-504.27043141,0.00019178,2]
[347937525,1736225442369,-500.0,0.00019178,2]
[347937526,1736225442378,-501.67731476,0.00019178,2]
[347937527,1736225442387,-151.0,0.00019178,2]
[347937528,1736225442396,-151.0,0.00019178,2]
[347937529,1736225442406,-151.0,0.00019178,2]
[347937530,1736225442415,-151.0,0.00019178,2]
[347937531,1736225442424,-500.0,0.00019178,2]
[347937532,1736225442433,-500.0,0.00019178,2]
[347937533,1736225442443,-509.40105008,0.00019178,2]
[347937534,1736225442452,-500.0,0.00019178,2]
[347937535,1736225442461,-790.13,0.00019178,2]
[347937536,1736225442470,-505.06936637,0.00019178,2]
[347937537,1736225442480,-506.78660323,0.00019178,2]
[347937538,1736225442489,-500.0,0.00019178,2]
[347937539,1736225442499,-500.0,0.00019178,2]
[347937540,1736225442508,-504.2178372,0.00019178,2]
[347937541,1736225442518,-500.0,0.00019178,2]
[347937542,1736225442528,-500.0,0.00019178,2]
[347937543,1736225442537,-506.22518273,0.00019178,2]
[347937544,1736225442547,-504.76453535,0.00019178,2]
[347937545,1736225442556,-1875.59,0.00019178,2]
[347937546,1736225442565,-515.59434663,0.00019178,2]
[347937547,1736225442575,-512.62,0.00019178,2]
[347937548,1736225442584,-627.85748702,0.00019178,2]
[347937549,1736225442593,-500.0,0.00019178,2]
[347937550,1736225442603,-500.0,0.00019178,2]
[347937551,1736225442612,-504.77751846,0.00019178,2]
[347937552,1736225442622,-502.12970579,0.00019178,2]
[347937553,1736225442632,-322.73729564,0.00019178,2]
[347937554,1736225442642,-500.0,0.00019178,2]
[347937555,1736225442651,-500.0,0.00019178,2]
[347937556,1736225442660,-696.19,0.00019178,2]
[347937557,1736225442670,-505.84745506,0.00019178,2]
[347937558,1736225442680,-500.0,0.00019178,2]
[347937559,1736225442689,-500.0,0.00019178,2]
[347937560,1736225442699,-500.0,0.00019178,2]
[347937561,1736225442709,-541.42,0.00019178,2]
[347937562,1736225442718,-500.0,0.00019178,2]
[347937563,1736225442728,-500.0,0.00019178,2]
[347937564,1736225442737,-500.0,0.00019178,2]
[347937565,1736225442747,-516.56931029,0.00019178,2]
[347937566,1736225442756,-500.0,0.00019178,2]
[347937567,1736225442766,-500.0,0.00019178,2]
[347937568,1736225442775,-508.70126107,0.00019178,2]
[347937569,1736225442785,-500.0,0.00019178,2]
[347937570,1736225442794,-500.0,0.00019178,2]
[347937571,1736225442803,-500.0,0.00019178,2]
[347937572,1736225442813,-500.0,0.00019178,2]
[347937573,1736225442822,-504.25987189,0.00019178,2]
[347937574,1736225442831,-500.0,0.00019178,2]
[347937575,1736225442841,-500.0,0.00019178,2]
[347937576,1736225442851,-504.94154063,0.00019178,2]
[347937577,1736225442861,-508.18536611,0.00019178,2]
[347937578,1736225442870,-502.97846137,0.00019178,2]
[347937579,1736225442880,-503.69392547,0.00019178,2]
[347937580,1736225442890,-509.4491268,0.00019178,2]
[347937581,1736225442901,-154.619468,0.00019178,2]
[347937582,1736225442911,-500.0,0.00019178,2]
[347937583,1736225442920,-154.619468,0.00019178,2]
[347937584,1736225442930,-154.619468,0.00019178,2]
[347937585,1736225442942,-154.619468,0.00019178,2]
[347937586,1736225442952,-154.619468,0.00019178,2]
[347937587,1736225442962,-501.89738751,0.00019178,2]
[347937588,1736225442971,-500.0,0.00019178,2]
[347937589,1736225442981,-154.619468,0.00019178,2]
[347937590,1736225442990,-154.619468,0.00019178,2]
[347937591,1736225442999,-154.619468,0.00019178,2]
[347937592,1736225443009,-154.619468,0.00019178,2]
[347937593,1736225443019,-154.619468,0.00019178,2]
[347937594,1736225443028,-501.77380194,0.00019178,2]
[347937595,1736225443037,-500.0,0.00019178,2]
[347937596,1736225443046,-502.43294846,0.00019178,2]
[347937597,1736225443056,-503.24227986,0.00019178,2]
[347937598,1736225443066,-504.37329059,0.00019178,2]
[347937599,1736225443075,-500.0,0.00019178,2]
[347937600,1736225443084,-500.0,0.00019178,2]
[347937601,1736225443093,-502.83608513,0.00019178,2]
[347937602,1736225443103,-5309.53,0.00019178,2]
[347937603,1736225443112,-500.0,0.00019178,2]
[347937604,1736225443122,-496.99085582,0.00019178,2]
[347937605,1736225443131,-505.97626858,0.00019178,2]
[347937606,1736225443140,-500.0,0.00019178,2]
[347937607,1736225443150,-508.49794643,0.00019178,2]
[347937608,1736225443159,-500.0,0.00019178,2]
[347937609,1736225443170,-500.0,0.00019178,2]
[347937610,1736225443179,-500.0,0.00019178,2]
[347937611,1736225443191,-507.64799622,0.00019178,2]
[347937612,1736225443200,-505.293763,0.00019178,2]
[347937613,1736225443210,-501.67365616,0.00019178,2]
[347937614,1736225443220,-554.71,0.00019178,2]
[347937615,1736225443230,-500.0,0.00019178,2]
[347937616,1736225443239,-500.97059777,0.00019178,2]
[347937617,1736225443249,-501.62962424,0.00019178,2]
[347937618,1736225443258,-500.0,0.00019178,2]
[347937620,1736225443267,-504.52164634,0.00019178,2]
[347937621,1736225443277,-501.79271792,0.00019178,2]
[347937622,1736225443286,-502.31431467,0.00019178,2]
[347937623,1736225443296,-500.0,0.00019178,2]
[347937624,1736225443305,-500.0,0.00019178,2]
[347937625,1736225443315,-501.52394372,0.00019178,2]
[347937626,1736225443325,-500.0,0.00019178,2]
[347937627,1736225443334,-525.00403968,0.00019178,2]
[347937628,1736225443344,-500.83679592,0.00019178,2]
[347937629,1736225443353,-500.0,0.00019178,2]
[347937630,1736225443363,-501.89008847,0.00019178,2]
[347937631,1736225443373,-502.59559833,0.00019178,2]
[347937632,1736225443382,-500.0,0.00019178,2]
[347937633,1736225443392,-500.0,0.00019178,2]
[347937634,1736225443401,-869.94,0.00019178,2]
[347937635,1736225443410,-512.09038878,0.00019178,2]
[347937636,1736225443419,-500.0,0.00019178,2]
[347937637,1736225443430,-503.84084952,0.00019178,2]
[347937638,1736225443439,-505.10212592,0.00019178,2]
[347937639,1736225443449,-500.0,0.00019178,2]
[347937640,1736225443459,-151.0,0.00019178,2]
[347937641,1736225443468,-427.61086415,0.00019178,2]
[347937642,1736225443478,-151.0,0.00019178,2]
[347937643,1736225443488,-500.0,0.00019178,2]
[347937644,1736225443497,-151.0,0.00019178,2]
[347937645,1736225443506,-501.76993459,0.00019178,2]
[347937646,1736225443516,-151.0,0.00019178,2]
[347937647,1736225443526,-446.53455727,0.00019178,2]
[347937661,1736225551371,200.0,0.00025,120]
[347937674,1736225885372,400.0,0.00013973,2]
[347937678,1736226248560,500.0,0.00025,120]
[347937679,1736226262742,498.40095963,0.00025,120]
[347937680,1736226434138,-459.0,0.00016353,2]
[347937681,1736226447121,-2096.89066654,0.00016353,2]
[347937682,1736226447144,-956.6198535,0.00016518,2]
[347937683,1736226447165,-383.29971,0.00017384,2]
[347937684,1736226447186,-756.6198535,0.00017616,2]
[347937685,1736226447207,-300.0,0.0001808,2]
[347937686,1736226447226,-8531.28921275,0.0001808,2]
[347937687,1736226549095,-300.0,0.00018078,2]
[347937688,1736226549117,-11486.0,0.00018081,2]
[347937689,1736226549139,-6512.06425185,0.00018082,2]
[347937700,1736226631898,-300.0,0.00018081,2]
[347937701,1736226631908,-1414.805804,0.00018082,2]
[347937702,1736226631919,-16973.12994415,0.00018082,2]
[347937703,1736226631929,-4133.90662584,0.000182,2]
[347937704,1736226631938,-4133.90662562,0.000182,2]
[347937706,1736226631947,-161.97684726,0.00018214,2]
[347937708,1736226631956,-4133.90662562,0.00018314,2]
[347937709,1736226631965,-481.551,0.0001848,2]
[347937710,1736226631974,-4133.90662562,0.00018521,2]
[347937711,1736226631983,-1905.27922311,0.00018728,2]
[347937712,1736226631998,-2228.62740251,0.00018728,2]
[347937713,1736226632007,-4133.90662562,0.00018934,2]
[347937715,1736226632016,-161.97684723,0.0001903,2]
[347937717,1736226632026,-20.08263067,0.0001903,2]
[347937834,1736226637762,-292.54736933,0.0001903,2]
[347937835,1736226637772,-62.77609113,0.00019078,2]
[347937836,1736226637784,-106.74573159,0.00019078,2]
[347937837,1736226637793,-4133.90662562,0.00019141,2]
[347937838,1736226637803,-500.0,0.00019173,2]
[347937839,1736226637813,-501.29688798,0.00019173,2]
[347937840,1736226637822,-322.23083845,0.00019173,2]
[347937841,1736226637831,-356.93974349,0.00019173,2]
[347937842,1736226637841,-501.73929843,0.00019173,2]
[347937843,1736226637850,-500.0,0.00019173,2]
[347937844,1736226637859,-501.98653056,0.00019173,2]
[347937845,1736226637868,-253.40270111,0.00019177,2]
[347937846,1736226637877,-579.00150904,0.00019177,2]
[347937847,1736226637887,-177.38189077,0.00019177,2]
[347937848,1736226637896,-434.15008325,0.00019177,2]
[347937849,1736226637906,-500.0,0.00019177,2]
[347937850,1736226637915,-500.0,0.00019177,2]
[347937851,1736226637925,-500.0,0.00019177,2]
[347937852,1736226637935,-360.64638453,0.00019177,2]
[347937853,1736226637944,-500.0,0.00019177,2]
[347937854,1736226637954,-500.0,0.00019177,2]
[347937855,1736226637964,-500.0,0.00019177,2]
[347937856,1736226637973,-500.0,0.00019177,2]
[347937857,1736226637982,-500.0,0.00019177,2]
[347937858,1736226637991,-501.74105106,0.00019177,2]
[347937859,1736226638000,-500.0,0.00019177,2]
[347937860,1736226638009,-500.0,0.00019177,2]
[347937861,1736226638018,-500.0,0.00019177,2]
[347937862,1736226638027,-500.0,0.00019177,2]
[347937863,1736226638037,-500.0,0.00019177,2]
[347937864,1736226638046,-500.0,0.00019177,2]
[347937865,1736226638055,-500.0,0.00019177,2]
[347937866,1736226638064,-500.0,0.00019177,2]
[347937867,1736226638073,-500.0,0.00019177,2]
[347937868,1736226638082,-500.0,0.00019177,2]
[347937869,1736226638091,-500.0,0.00019177,2]
[347937870,1736226638100,-381.64727001,0.00019177,2]
[347937871,1736226638109,-500.0,0.00019177,2]
[347937872,1736226638118,-500.0,0.00019177,2]
[347937873,1736226638127,-151.0,0.00019178,2]
[347937874,1736226638136,-151.0,0.00019178,2]
[347937875,1736226638145,-151.0,0.00019178,2]
[347937876,1736226638155,-151.0,0.00019178,2]
[347937877,1736226638164,-151.0,0.00019178,2]
[347937878,1736226638173,-151.0,0.00019178,2]
[347937879,1736226638183,-151.0,0.00019178,2]
[347937880,1736226638194,-151.0,0.00019178,2]
[347937881,1736226638204,-741.241125,0.00019178,2]
[347937882,1736226638214,-741.241125,0.00019178,2]
[347937883,1736226638223,-741.241125,0.00019178,2]
[347937884,1736226638232,-741.241125,0.00019178,2]
[347937885,1736226638242,-741.241125,0.00019178,2]
[347937886,1736226638251,-741.241125,0.00019178,2]
[347937887,1736226638260,-741.241125,0.00019178,2]
[347937888,1736226638269,-741.241125,0.00019178,2]
[347937889,1736226638278,-741.241125,0.00019178,2]
[347937890,1736226638288,-741.241125,0.00019178,2]
[347937891,1736226638298,-741.241125,0.00019178,2]
[347937892,1736226638307,-741.241125,0.00019178,2]
[347937893,1736226638316,-741.241125,0.00019178,2]
[347937894,1736226638325,-741.241125,0.00019178,2]
[347937895,1736226638334,-741.241125,0.00019178,2]
[347937896,1736226638343,-741.241125,0.00019178,2]
[347937897,1736226638353,-151.0,0.00019178,2]
[347937898,1736226638362,-151.0,0.00019178,2]
[347937899,1736226638371,-151.0,0.00019178,2]
[347937900,1736226638380,-151.0,0.00019178,2]
[347937901,1736226638389,-151.0,0.00019178,2]
[347937902,1736226638398,-241.780798,0.00019178,2]
[347937903,1736226638407,-506.71743847,0.00019178,2]
[347937904,1736226638420,-151.0,0.00019178,2]
[347937905,1736226638430,-151.0,0.00019178,2]
[347937906,1736226638439,-151.0,0.00019178,2]
[347937907,1736226638448,-151.0,0.00019178,2]
[347937908,1736226638458,-151.0,0.00019178,2]
[347937909,1736226638468,-151.0,0.00019178,2]
[347937910,1736226638477,-151.0,0.00019178,2]
[347937911,1736226638486,-151.0,0.00019178,2]
[347937912,1736226638495,-151.0,0.00019178,2]
[347937913,1736226638505,-247.144753,0.00019178,2]
[347937914,1736226638515,-247.144753,0.00019178,2]
[347937915,1736226638524,-247.144753,0.00019178,2]
[347937916,1736226638534,-247.144753,0.00019178,2]
[347937917,1736226638543,-247.144753,0.00019178,2]
[347937918,1736226638552,-247.144753,0.00019178,2]
[347937919,1736226638562,-247.144753,0.00019178,2]
[347937920,1736226638571,-247.144753,0.00019178,2]
[347937921,1736226638580,-247.144753,0.00019178,2]
[347937922,1736226638590,-247.144753,0.00019178,2]
[347937923,1736226638599,-247.144753,0.00019178,2]
[347937924,1736226638608,-151.0,0.00019178,2]
[347937925,1736226638617,-247.144753,0.00019178,2]
[347937926,1736226638627,-247.144753,0.00019178,2]
[347937927,1736226638636,-247.144753,0.00019178,2]
[347937928,1736226638646,-247.144753,0.00019178,2]
[347937929,1736226638655,-247.144753,0.00019178,2]
[347937930,1736226638665,-27.40185387,0.00019178,2]
[347937931,1736226638991,-219.74289913,0.00019178,2]
[347937932,1736226639001,-247.144753,0.00019178,2]
[347937933,1736226639010,-506.04384893,0.00019178,2]
[347937934,1736226639019,-198.25231518,0.00019178,2]
[347937935,1736226639028,-276.00721668,0.00019178,2]
[347937936,1736226639040,-223.99278332,0.00019178,2]
[347937937,1736226639050,-516.42395841,0.00019178,2]
[347937938,1736226639059,-151.0,0.00019178,2]
[347937939,1736226639069,-151.0,0.00019178,2]
[347937940,1736226639078,-151.0,0.00019178,2]
[347937941,1736226639088,-151.0,0.00019178,2]
[347937942,1736226639097,-151.0,0.00019178,2]
[347937943,1736226639106,-151.0,0.00019178,2]
[347937944,1736226639116,-151.0,0.00019178,2]
[347937945,1736226639125,-500.0,0.00019178,2]
[347937946,1736226639135,-151.0,0.00019178,2]
[347937947,1736226639144,-193.386193,0.00019178,2]
[347937948,1736226639153,-500.0,0.00019178,2]
[347937949,1736226639163,-500.0,0.00019178,2]
[347937950,1736226639174,-462.94586441,0.00019178,2]
[347937951,1736226639190,-37.05413559,0.00019178,2]
[347937952,1736226639199,-500.0,0.00019178,2]
[347937953,1736226639209,-500.0,0.00019178,2]
[347937954,1736226639219,-500.0,0.00019178,2]
[347937955,1736226639229,-500.0,0.00019178,2]
[347937956,1736226639239,-500.0,0.00019178,2]
[347937957,1736226639248,-500.0,0.00019178,2]
[347937958,1736226639257,-500.0,0.00019178,2]
[347937959,1736226639266,-500.0,0.00019178,2]
[347937960,1736226639275,-500.0,0.00019178,2]
[347937961,1736226639284,-500.0,0.00019178,2]
[347937962,1736226639294,-500.0,0.00019178,2]
[347937963,1736226639303,-500.0,0.00019178,2]
[347937964,1736226639313,-500.0,0.00019178,2]
[347937965,1736226639322,-184.48740922,0.00019178,2]
[347938027,1736227006057,400.0,0.00013973,2]
[347938029,1736227249456,1295.9,0.00015001,2]
[347938036,1736227587376,1186.24509082,0.00025,120]
[347938037,1736227625110,-381.98689442,0.00017388,2]
[347938038,1736227636838,-1878.10260157,0.00017388,2]
[347938039,1736227636861,-300.0,0.00017564,2]
[347938040,1736227636884,-24900.0,0.00017565,2]
[347938041,1736227636906,-523.224476,0.00017644,2]
[347938042,1736227636929,-3300.0,0.000182,2]
[347938043,1736227636951,-479.503,0.0001848,2]
[347938044,1736227636974,-482.9438067,0.00018661,2]
[347938045,1736227636994,-3300.0,0.000187,2]
[347938046,1736227637018,-3169.32841313,0.000189,2]
[347938047,1736227637044,-393.60115302,0.00019,2]
[347938048,1736227637068,-307.316,0.00019028,2]
[347938049,1736227637093,-3169.32841297,0.00019072,2]
[347938050,1736227637114,-153.41,0.00019077,2]
[347938051,1736227637135,-169.52182272,0.00019078,2]
[347938052,1736227637156,-3439.97642839,0.00019096,2]
[347938053,1736227637177,-183.42162145,0.000191,2]
[347938054,1736227637198,-154.32,0.00019173,2]
[347938055,1736227637219,-500.0,0.00019173,2]
[347938056,1736227637239,-500.0,0.00019173,2]
[347938057,1736227637259,-420.0,0.00019173,2]
[347938058,1736227637281,-189.21355335,0.00019177,2]
[347938059,1736227637301,-13657.87149528,0.00019178,2]
[347938070,1736227705942,269.78317509,0.00014114,2]
[347938071,1736227707990,275.65273985,0.0001,2]
[347938072,1736227712738,236.66632664,0.0001,7]
[347938073,1736227717130,565.83965731,0.000149,2]